bitfinex-derivatives/quotes_BNBF0:USTF0_20251027
["timestamp","ask_amount","ask_price","bid_price","bid_amount"]
[1761544664532,0.15105314,1154.0,1151.7,0.56802182]
[1761544664729,0.15105314,1154.0,1151.8,0.56802182]
[1761544664933,0.15105314,1154.0,1151.2,1.577]
[1761544665229,0.15105314,1154.0,1151.3,0.56808298]
[1761544665432,0.15105314,1154.0,1151.4,0.56808298]
[1761544665633,0.15105314,1154.0,1151.5,0.56808298]
[1761544665830,0.15105314,1154.0,1151.6,0.56808298]
[1761544666033,0.15105314,1154.0,1151.7,0.56808298]
[1761544666233,0.15105314,1154.0,1151.2,1.577]
[1761544666533,0.15105314,1154.0,1151.3,0.5680231]
[1761544666728,0.15105314,1154.0,1151.4,0.5680231]
[1761544666933,0.15105314,1154.0,1151.5,0.5680231]
[1761544667128,2.31219234,1154.0,1151.6,0.5680231]
[1761544667432,2.31219234,1154.0,1151.2,1.577]
[1761544667632,2.31219234,1154.0,1151.3,0.56810702]
[1761544667829,2.31219234,1154.0,1151.4,0.56810702]
[1761544668033,2.31219234,1154.0,1151.5,0.56810702]
[1761544668233,2.31219234,1154.0,1151.6,0.56810702]
[1761544668531,2.31219234,1154.0,1151.2,1.577]
[1761544668731,2.31219234,1154.0,1151.3,0.56810602]
[1761544668930,2.31219234,1154.0,1151.4,0.56810602]
[1761544669132,2.31219234,1154.0,1151.5,0.56810602]
[1761544669335,2.31219234,1154.0,1151.6,0.56810602]
[1761544669533,2.31219234,1154.0,1151.2,1.577]
[1761544669736,2.31219234,1154.0,1151.3,0.56810357]
[1761544669931,2.31219234,1154.0,1151.2,1.577]
[1761544669932,2.31219234,1154.0,1151.4,0.56810357]
[1761544670132,2.31219234,1154.0,1151.5,0.56810357]
[1761544670337,0.15105314,1154.0,1151.6,0.56810357]
[1761544670533,0.15105314,1154.0,1151.2,1.577]
[1761544670740,0.15105314,1154.0,1151.3,0.56812953]
[1761544670934,0.15105314,1154.0,1151.4,0.56812953]
[1761544671134,0.15105314,1154.0,1151.5,0.56812953]
[1761544671334,0.15105314,1154.0,1151.6,0.56812953]
[1761544671534,0.15105314,1154.0,1151.2,1.577]
[1761544671738,0.15105314,1154.0,1151.3,0.56815658]
[1761544671936,0.15105314,1154.0,1151.4,0.56815658]
[1761544672135,0.15105314,1154.0,1151.5,0.56815658]
[1761544672337,0.15105314,1154.0,1151.6,0.56815658]
[1761544672537,0.15105314,1154.0,1151.2,1.577]
[1761544672741,0.15105314,1154.0,1151.3,0.56820325]
[1761544672938,0.15105314,1154.0,1151.4,0.56820325]
[1761544673136,0.15105314,1154.0,1151.5,0.56820325]
[1761544673441,0.15105314,1154.0,1151.6,0.56820325]
[1761544673740,0.15105314,1154.0,1151.2,1.577]
[1761544673937,0.15105314,1154.0,1151.3,0.56822161]
[1761544674143,0.15105314,1154.0,1151.4,0.56822161]
[1761544674342,0.15105314,1154.0,1151.5,0.56822161]
[1761544674542,0.15105314,1154.0,1151.6,0.56822161]
[1761544674742,0.15105314,1154.0,1151.2,1.577]
[1761544674943,0.15105314,1154.0,1151.3,0.56829284]
[1761544675142,0.15105314,1154.0,1151.4,0.56829284]
[1761544675343,0.15105314,1154.0,1151.5,0.56829284]
[1761544675540,0.15105314,1154.0,1151.6,0.56829284]
[1761544675740,0.15105314,1154.0,1151.2,1.577]
[1761544675940,0.15105314,1154.0,1151.3,0.5683364]
[1761544676140,0.15105314,1154.0,1151.4,0.5683364]
[1761544676440,0.15105314,1154.0,1151.5,0.5683364]
[1761544676638,0.15105314,1154.0,1151.6,0.5683364]
[1761544676843,0.15105314,1154.0,1151.2,1.577]
[1761544677156,2.31219234,1154.0,1151.3,0.56840778]
[1761544677344,2.31219234,1154.0,1151.4,0.56840778]
[1761544677544,2.31219234,1154.0,1151.5,0.56840778]
[1761544677740,2.31219234,1154.0,1151.2,1.577]
[1761544677941,2.31219234,1154.0,1151.3,0.56838868]
[1761544678140,2.31219234,1154.0,1151.4,0.56838868]
[1761544678444,2.31219234,1154.0,1151.5,0.56838868]
[1761544678641,2.31219234,1154.0,1151.2,1.577]
[1761544678941,2.31219234,1154.0,1151.3,0.56838247]
[1761544679243,0.15105314,1154.0,1151.4,0.56838247]
[1761544679444,0.15105314,1154.0,1151.5,0.56838247]
[1761544679647,0.15105314,1154.0,1151.2,1.577]
[1761544679842,0.15105314,1154.0,1151.3,0.56865059]
[1761544680047,0.15105314,1154.0,1151.4,0.56865059]
[1761544680246,0.15105314,1154.0,1151.5,0.56865059]
[1761544680442,0.15105314,1154.0,1151.2,1.577]
[1761544680643,0.15105314,1154.0,1151.3,0.56869174]
[1761544680943,0.15105314,1154.0,1151.4,0.56869174]
[1761544681143,0.15105314,1154.0,1151.2,1.577]
[1761544681444,0.15105314,1154.0,1151.3,0.56891877]
[1761544681642,0.15105314,1154.0,1151.4,0.56891877]
[1761544681846,0.15105314,1154.0,1151.2,1.577]
[1761544682046,0.15105314,1154.0,1151.3,0.56892068]
[1761544682347,2.31219234,1154.0,1151.4,0.56892068]
[1761544682545,2.31219234,1154.0,1151.2,1.577]
[1761544682745,2.31219234,1154.0,1151.3,0.56891228]
[1761544683047,2.31219234,1154.0,1151.4,0.56891228]
[1761544683245,0.15105314,1154.0,1151.2,1.577]
[1761544683445,0.15105314,1154.0,1151.3,0.56891002]
[1761544683746,0.15105314,1154.0,1151.4,0.56891002]
[1761544683948,0.15105314,1154.0,1151.2,1.577]
[1761544684146,0.15105314,1154.0,1151.3,0.56890984]
[1761544684345,0.15105314,1154.0,1151.4,0.56890984]
[1761544684545,0.15105314,1154.0,1151.2,1.577]
[1761544684749,0.15105314,1154.0,1151.3,0.56890227]
[1761544685048,2.1611392,1153.8,1151.2,1.577]
[1761544685448,2.1611392,1153.0,1151.2,1.577]
[1761544685946,2.1611392,1153.1,1151.2,1.577]
[1761544686351,2.1611392,1153.0,1151.2,1.577]
[1761544686946,3.0255949,1153.4,1151.2,1.577]
[1761544687548,2.1611392,1153.7,1151.2,1.577]
[1761544690651,2.1611392,1153.8,1151.2,1.577]
[1761544692756,2.1611392,1153.9,1151.2,1.577]
[1761544693153,2.1611392,1153.8,1151.2,1.577]
[1761544693652,2.1611392,1153.9,1151.2,1.577]
[1761544694253,2.1611392,1153.5,1151.2,1.577]
[1761544694653,2.1611392,1153.6,1151.2,1.577]
[1761544695254,2.31219234,1154.0,1151.2,1.577]
[1761544697058,0.15105314,1154.0,1151.2,1.577]
[1761544698460,2.31219234,1154.0,1151.2,1.577]
[1761544698955,0.15105314,1154.0,1151.2,1.577]
[1761544699960,2.1611392,1153.8,1151.2,1.577]
[1761544701161,2.1611392,1153.7,1150.3,0.64363572]
[1761544701457,2.1611392,1153.7,1150.4,0.56545525]
[1761544701663,2.1611392,1153.7,1150.5,0.56545525]
[1761544701962,2.1611392,1153.7,1150.6,0.56545525]
[1761544702159,2.1611392,1153.6,1150.7,0.56545525]
[1761544702362,2.1611392,1153.6,1150.2,0.64363572]
[1761544702564,2.1611392,1153.6,1150.3,0.56540795]
[1761544702763,2.1611392,1153.6,1150.4,0.56540795]
[1761544702964,2.1611392,1153.6,1150.5,0.56540795]
[1761544703261,2.1611392,1153.6,1150.6,0.56540795]
[1761544703460,2.1611392,1153.6,1150.2,0.64363572]
[1761544703461,2.1611392,1153.6,1150.7,0.56540795]
[1761544703765,2.1611392,1153.6,1150.2,0.64363572]
[1761544704065,2.1611392,1153.6,1150.3,0.56532377]
[1761544704267,2.1611392,1153.7,1150.4,0.56532377]
[1761544704461,2.1611392,1153.7,1150.5,0.56532377]
[1761544704665,2.1611392,1153.7,1150.6,0.56532377]
[1761544704865,2.1611392,1153.9,1150.7,0.56532377]
[1761544705065,2.1611392,1153.9,1150.8,0.56513307]
[1761544705266,2.1611392,1153.9,1150.3,1.675]
[1761544705563,2.1611392,1153.9,1150.4,0.56512376]
[1761544705765,2.1611392,1153.9,1150.5,0.56512376]
[1761544705965,2.1611392,1153.9,1150.6,0.56512376]
[1761544706167,2.1611392,1153.9,1150.7,0.56512376]
[1761544706366,2.1611392,1153.9,1150.8,0.56512376]
[1761544706565,2.1611392,1153.9,1150.3,1.675]
[1761544706765,2.1611392,1153.9,1150.4,0.56516021]
[1761544706964,0.15105314,1154.0,1150.5,0.56516021]
[1761544707166,0.15105314,1154.0,1150.6,0.56516021]
[1761544707381,0.15105314,1154.0,1150.7,0.56516021]
[1761544707570,0.15105314,1154.0,1150.8,0.56516021]
[1761544707867,0.15105314,1154.0,1150.3,1.675]
[1761544708065,0.15105314,1154.0,1150.4,0.56513815]
[1761544708264,0.15105314,1154.0,1150.5,0.56513815]
[1761544708468,0.15105314,1154.0,1150.6,0.56513815]
[1761544708666,0.15105314,1154.0,1150.7,0.56513815]
[1761544708871,0.15105314,1154.0,1150.8,0.56513815]
[1761544709169,0.15105314,1154.0,1150.3,1.675]
[1761544709369,0.15105314,1154.0,1150.4,0.56507038]
[1761544709568,0.15105314,1154.0,1150.5,0.56507038]
[1761544709865,0.15105314,1154.0,1150.6,0.56507038]
[1761544710070,0.15105314,1154.0,1150.7,0.56507038]
[1761544710270,0.15105314,1154.0,1150.8,0.56507038]
[1761544710470,0.15105314,1154.0,1150.3,1.675]
[1761544710766,0.15105314,1154.0,1150.4,0.56483326]
[1761544711069,0.15105314,1154.0,1150.5,0.56483326]
[1761544711270,0.15105314,1154.0,1150.6,0.56483326]
[1761544711470,0.15105314,1154.0,1150.7,0.56483326]
[1761544711671,0.15105314,1154.0,1150.8,0.56483326]
[1761544711867,0.15105314,1154.0,1150.9,0.56483326]
[1761544712072,0.15105314,1154.0,1150.3,2.31863572]
[1761544712273,0.15105314,1154.0,1150.4,0.56507594]
[1761544712473,0.15105314,1154.0,1150.5,0.56507594]
[1761544712670,2.31219234,1154.0,1150.6,0.56507594]
[1761544712869,2.31219234,1154.0,1150.7,0.56507594]
[1761544713168,2.31219234,1154.0,1150.8,0.56507594]
[1761544713372,2.31219234,1154.0,1150.3,2.31863572]
[1761544713574,2.31219234,1154.0,1150.4,0.56510215]
[1761544713875,2.31219234,1154.0,1150.5,0.56510215]
[1761544714072,2.31219234,1154.0,1150.6,0.56510215]
[1761544714271,2.31219234,1154.0,1150.7,0.56510215]
[1761544714471,2.31219234,1154.0,1150.8,0.56510215]
[1761544714677,2.31219234,1154.0,1150.3,2.31863572]
[1761544714876,2.31219234,1154.0,1150.4,0.5651357]
[1761544715074,2.31219234,1154.0,1150.5,0.5651357]
[1761544715273,2.31219234,1154.0,1150.6,0.5651357]
[1761544715476,2.31219234,1154.0,1150.7,0.5651357]
[1761544715772,2.31219234,1154.0,1150.8,0.5651357]
[1761544715977,2.31219234,1154.0,1150.3,2.31863572]
[1761544716173,2.31219234,1154.0,1150.4,0.56514205]
[1761544716377,2.1611392,1153.8,1150.5,0.56514205]
[1761544716578,2.1611392,1153.8,1150.6,0.56514205]
[1761544716879,2.1611392,1153.8,1150.7,0.56514205]
[1761544717078,2.1611392,1153.8,1150.8,0.56514205]
[1761544717279,2.1611392,1153.8,1150.3,2.31863572]
[1761544717479,2.1611392,1153.8,1150.4,0.5652792]
[1761544717677,2.1611392,1153.8,1150.5,0.5652792]
[1761544717877,2.1611392,1153.8,1150.6,0.5652792]
[1761544718080,2.1611392,1153.8,1150.7,0.5652792]
[1761544718279,2.1611392,1153.8,1150.8,0.5652792]
[1761544718580,2.1611392,1153.8,1150.3,2.31863572]
[1761544718780,2.1611392,1153.8,1150.4,0.5653776]
[1761544718975,2.1611392,1153.8,1150.5,0.5653776]
[1761544719181,2.1611392,1153.8,1150.6,0.5653776]
[1761544719380,2.1611392,1153.8,1150.7,0.5653776]
[1761544719579,2.1611392,1153.8,1150.8,0.5653776]
[1761544719778,2.1611392,1153.8,1150.3,2.31863572]
[1761544719981,2.1611392,1153.8,1150.4,0.5654479]
[1761544720180,2.1611392,1153.8,1150.5,0.5654479]
[1761544720379,2.1611392,1153.8,1150.6,0.5654479]
[1761544720583,2.1611392,1153.8,1150.7,0.5654479]
[1761544720879,2.1611392,1153.8,1150.3,2.31863572]
[1761544720880,2.1611392,1153.8,1150.8,0.5654479]
[1761544721081,2.1611392,1153.8,1150.4,0.64363572]
[1761544721281,2.1611392,1153.8,1150.5,0.56554376]
[1761544721584,2.1611392,1153.3,1150.6,0.56554376]
[1761544721779,2.1611392,1153.3,1150.7,0.56554376]
[1761544721980,2.1611392,1153.8,1150.8,0.56554376]
[1761544722180,2.1611392,1153.8,1150.9,0.56568837]
[1761544722379,2.1611392,1153.8,1150.4,0.64363572]
[1761544722580,2.1611392,1153.8,1150.5,0.56582411]
[1761544722785,2.1611392,1153.8,1150.6,0.56582411]
[1761544722980,2.1611392,1153.8,1150.7,0.56582411]
[1761544723184,2.1611392,1153.8,1150.8,0.56582411]
[1761544723386,2.1611392,1153.8,1150.9,0.56582411]
[1761544723585,2.1611392,1153.9,1150.4,0.64363572]
[1761544723890,2.1611392,1153.9,1150.5,0.56596037]
[1761544724082,2.1611392,1153.9,1150.6,0.56596037]
[1761544724281,2.1611392,1153.9,1150.7,0.56596037]
[1761544724483,2.1611392,1153.9,1150.8,0.56596037]
[1761544724688,2.1611392,1153.9,1150.9,0.56596037]
[1761544724886,2.1611392,1153.9,1150.4,0.64363572]
[1761544725186,2.1611392,1153.9,1150.5,0.5660918]
[1761544725486,2.1611392,1153.9,1150.6,0.5660918]
[1761544725686,2.1611392,1153.9,1150.7,0.5660918]
[1761544725883,2.1611392,1153.9,1150.8,0.5660918]
[1761544726184,2.1611392,1153.9,1150.9,0.5660918]
[1761544726386,2.1611392,1153.9,1151.0,0.5660918]
[1761544726593,2.1611392,1153.9,1150.4,0.64363572]
[1761544726782,2.1611392,1153.9,1150.5,0.56630441]
[1761544726982,2.1611392,1153.9,1150.6,0.56630441]
[1761544727186,0.15105314,1154.0,1150.7,0.56630441]
[1761544727386,0.15105314,1154.0,1150.8,0.56630441]
[1761544727682,0.15105314,1154.0,1150.9,0.56630441]
[1761544727886,0.15105314,1154.0,1150.4,0.64363572]
[1761544727887,0.15105314,1154.0,1150.3,2.31863572]
[1761544728083,0.15105314,1154.0,1150.4,0.56647642]
[1761544728286,2.31219234,1154.0,1150.5,0.56647642]
[1761544728480,2.31219234,1154.0,1150.6,0.56647642]
[1761544728683,2.31219234,1154.0,1150.7,0.56647642]
[1761544728883,2.31219234,1154.0,1150.8,0.56647642]
[1761544729081,2.31219234,1154.0,1150.9,0.56647642]
[1761544729287,2.31219234,1154.0,1150.3,2.31863572]
[1761544729583,2.31219234,1154.0,1150.4,0.56671642]
[1761544729782,2.31219234,1154.0,1150.5,0.56671642]
[1761544729982,2.31219234,1154.0,1150.6,0.56671642]
[1761544730286,2.31219234,1154.0,1150.7,0.56671642]
[1761544730481,2.1611392,1153.9,1150.8,0.56671642]
[1761544730685,2.1611392,1153.9,1150.9,0.56671642]
[1761544730882,2.1611392,1152.8,1150.4,0.64363572]
[1761544731081,2.1611392,1152.8,1150.5,0.56674537]
[1761544731285,2.1611392,1152.8,1150.6,0.56674537]
[1761544731481,2.1611392,1152.8,1150.7,0.56674537]
[1761544731686,2.1611392,1152.8,1150.8,0.56674537]
[1761544731888,3.0255949,1153.2,1150.3,2.31863572]
[1761544732081,3.0255949,1153.2,1150.4,0.5668532]
[1761544732285,2.1611392,1153.5,1150.5,0.5668532]
[1761544732483,2.1611392,1153.5,1150.6,0.5668532]
[1761544732683,2.1611392,1153.5,1150.3,2.31863572]
[1761544732684,2.1611392,1153.5,1150.7,0.5668532]
[1761544732883,2.1611392,1153.5,1150.8,0.5668532]
[1761544733087,2.1611392,1153.5,1150.3,2.31863572]
[1761544733284,2.1611392,1153.5,1150.4,0.56696047]
[1761544733484,2.1611392,1153.5,1150.5,0.56696047]
[1761544733684,2.1611392,1153.5,1150.6,0.56696047]
[1761544733884,2.1611392,1153.5,1150.7,0.56696047]
[1761544734088,2.1611392,1153.5,1150.8,0.56696047]
[1761544734289,2.1611392,1153.5,1150.3,2.31863572]
[1761544734588,2.1611392,1153.5,1150.4,0.56715548]
[1761544734786,2.1611392,1153.5,1150.5,0.56715548]
[1761544734984,2.1611392,1153.5,1150.6,0.56715548]
[1761544735184,2.1611392,1153.5,1150.7,0.56715548]
[1761544735386,2.1611392,1153.5,1150.8,0.56715548]
[1761544735684,2.1611392,1153.7,1150.9,0.56715548]
[1761544735888,2.1611392,1153.7,1150.3,2.31863572]
[1761544736088,2.1611392,1153.7,1150.4,0.56726727]
[1761544736288,2.1611392,1153.7,1150.5,0.56726727]
[1761544736488,2.1611392,1153.7,1150.6,0.56726727]
[1761544736685,2.1611392,1153.7,1150.7,0.56726727]
[1761544736985,2.1611392,1153.7,1150.8,0.56726727]
[1761544737186,2.1611392,1153.7,1150.9,0.56726727]
[1761544737384,2.1611392,1153.7,1150.3,2.31863572]
[1761544737589,2.1611392,1153.7,1150.4,0.56754705]
[1761544737889,2.1611392,1153.7,1150.5,0.56754705]
[1761544738087,2.1611392,1153.7,1150.6,0.56754705]
[1761544738289,2.1611392,1153.7,1150.7,0.56754705]
[1761544738489,2.1611392,1153.7,1150.8,0.56754705]
[1761544738688,2.1611392,1153.7,1150.9,0.56754705]
[1761544738888,2.1611392,1153.7,1150.3,2.31863572]
[1761544739086,2.1611392,1153.7,1150.4,0.56765185]
[1761544739287,2.1611392,1153.7,1150.5,0.56765185]
[1761544739593,2.1611392,1153.7,1150.6,0.56765185]
[1761544739891,2.1611392,1153.7,1150.7,0.56765185]
[1761544740085,2.1611392,1153.7,1150.8,0.56765185]
[1761544740288,2.1611392,1153.7,1150.9,0.56765185]
[1761544740488,2.1611392,1153.7,1150.4,0.64363572]
[1761544740693,0.15105314,1154.0,1150.5,0.56788414]
[1761544740890,0.15105314,1154.0,1150.6,0.56788414]
[1761544741089,0.15105314,1154.0,1150.7,0.56788414]
[1761544741291,0.15105314,1154.0,1150.8,0.56788414]
[1761544741590,0.15105314,1154.0,1150.9,0.56788414]
[1761544741794,0.15105314,1154.0,1151.0,0.56788414]
[1761544741992,0.15105314,1154.0,1150.3,2.31863572]
[1761544742192,0.15105314,1154.0,1150.4,0.56808417]
[1761544742489,0.15105314,1154.0,1150.5,0.56808417]
[1761544742695,0.15105314,1154.0,1150.6,0.56808417]
[1761544742989,0.15105314,1154.0,1150.7,0.56808417]
[1761544743190,0.15105314,1154.0,1150.8,0.56808417]
[1761544743390,0.15105314,1154.0,1150.9,0.56808417]
[1761544743596,0.15105314,1154.0,1151.0,0.56808417]
[1761544743796,0.15105314,1154.0,1150.3,2.31863572]
[1761544743995,0.15105314,1154.0,1150.4,0.56834702]
[1761544744192,0.15105314,1154.0,1150.5,0.56834702]
[1761544744396,0.15105314,1154.0,1150.6,0.56834702]
[1761544744597,0.15105314,1154.0,1150.7,0.56834702]
[1761544744896,0.15105314,1154.0,1150.8,0.56834702]
[1761544745094,0.15105314,1154.0,1150.9,0.56834702]
[1761544745298,0.15105314,1154.0,1151.0,0.56834702]
[1761544745494,0.15105314,1154.0,1150.3,2.31863572]
[1761544745700,0.15105314,1154.0,1150.4,0.56858486]
[1761544745901,0.15105314,1154.0,1150.5,0.56858486]
[1761544746197,0.15105314,1154.0,1150.6,0.56858486]
[1761544746396,0.15105314,1154.0,1150.7,0.56858486]
[1761544746598,0.15105314,1154.0,1150.8,0.56858486]
[1761544746797,0.15105314,1154.0,1150.9,0.56858486]
[1761544746997,0.15105314,1154.0,1151.0,0.56858486]
[1761544747202,0.15105314,1154.0,1150.3,2.31863572]
[1761544747401,0.15105314,1154.0,1150.4,0.56865308]
[1761544747598,0.15105314,1154.0,1150.5,0.56865308]
[1761544747902,0.15105314,1154.0,1150.6,0.56865308]
[1761544748204,0.15105314,1154.0,1150.7,0.56865308]
[1761544748498,0.15105314,1154.0,1150.8,0.56865308]
[1761544748702,0.15105314,1154.0,1150.9,0.56865308]
[1761544748902,0.15105314,1154.0,1151.0,0.56865308]
[1761544749101,0.15105314,1154.0,1150.3,2.31863572]
[1761544749299,0.15105314,1154.0,1150.4,0.56893519]
[1761544749500,0.15105314,1154.0,1150.5,0.56893519]
[1761544749701,0.15105314,1154.0,1150.6,0.56893519]
[1761544749906,0.15105314,1154.0,1150.7,0.56893519]
[1761544750206,0.15105314,1154.0,1150.8,0.56893519]
[1761544750406,0.15105314,1154.0,1150.9,0.56893519]
[1761544750609,2.1611392,1153.8,1151.0,0.56893519]
[1761544750904,2.1611392,1153.8,1150.3,2.31863572]
[1761544751112,2.1611392,1153.8,1150.4,0.56888611]
[1761544751310,2.1611392,1153.8,1150.5,0.56888611]
[1761544751508,2.1611392,1153.8,1150.6,0.56888611]
[1761544751708,2.1611392,1153.8,1150.7,0.56888611]
[1761544751908,2.1611392,1153.8,1150.8,0.56888611]
[1761544752113,2.1611392,1153.5,1150.3,2.31863572]
[1761544752309,2.1611392,1153.5,1150.4,0.5688995]
[1761544752513,2.1611392,1153.5,1150.5,0.5688995]
[1761544752713,2.1611392,1153.1,1150.6,0.5688995]
[1761544752910,2.1611392,1153.1,1150.7,0.5688995]
[1761544753108,2.1611392,1153.1,1150.3,1.675]
[1761544753309,2.1611392,1153.1,1150.4,0.56899855]
[1761544753612,2.1611392,1153.1,1150.5,0.56899855]
[1761544753810,2.1611392,1153.1,1150.6,0.56899855]
[1761544754114,2.1611392,1153.1,1150.3,1.675]
[1761544754316,2.1611392,1153.1,1150.4,0.56773684]
[1761544754609,2.1611392,1153.1,1150.5,0.56773684]
[1761544754811,2.1611392,1153.1,1150.6,0.56773684]
[1761544755014,2.1611392,1153.0,1150.7,0.56773684]
[1761544755210,2.1611392,1153.0,1150.8,0.56773684]
[1761544755515,2.1611392,1153.0,1150.3,2.31863572]
[1761544755810,2.1611392,1153.0,1150.4,0.5675135]
[1761544756014,2.1611392,1153.0,1150.5,0.5675135]
[1761544756214,2.1611392,1153.0,1150.6,0.5675135]
[1761544756415,2.1611392,1153.0,1150.7,0.5675135]
[1761544756615,2.1611392,1153.0,1150.8,0.5675135]
[1761544756815,2.1611392,1153.0,1150.3,1.675]
[1761544757016,3.0255949,1153.5,1150.4,0.56751352]
[1761544757214,2.1611392,1153.6,1150.5,0.56751352]
[1761544757418,2.1611392,1153.6,1150.6,0.56751352]
[1761544757618,2.1611392,1153.5,1150.7,0.56751352]
[1761544757918,2.1611392,1153.5,1150.8,0.56751352]
[1761544758218,2.1611392,1153.5,1150.2,0.64363572]
[1761544758419,2.1611392,1153.5,1150.3,0.56753942]
[1761544758618,2.1611392,1153.5,1150.4,0.56753942]
[1761544758816,2.1611392,1153.5,1150.5,0.56753942]
[1761544759015,2.1611392,1153.5,1150.6,0.56753942]
[1761544759319,2.1611392,1153.5,1150.7,0.56753942]
[1761544759515,2.1611392,1153.5,1150.8,0.56753942]
[1761544759716,2.1611392,1153.5,1150.2,0.64363572]
[1761544759920,2.1611392,1153.5,1150.3,0.56755254]
[1761544760121,2.1611392,1153.5,1150.4,0.56755254]
[1761544760317,2.1611392,1153.5,1150.5,0.56755254]
[1761544760621,2.1611392,1153.5,1150.6,0.56755254]
[1761544760820,2.1611392,1153.5,1150.7,0.56755254]
[1761544761017,2.1611392,1153.5,1150.8,0.56755254]
[1761544761219,2.1611392,1153.5,1150.2,0.64363572]
[1761544761423,2.1611392,1153.5,1150.3,0.56751457]
[1761544761623,2.1611392,1153.5,1150.2,0.64363572]
[1761544761624,2.1611392,1153.5,1150.4,0.56751457]
[1761544761824,2.1611392,1153.5,1150.5,0.56751457]
[1761544762021,2.1611392,1153.5,1150.6,2.10051457]
[1761544762225,2.1611392,1153.0,1150.7,0.56751457]
[1761544762425,2.1611392,1153.0,1150.6,1.533]
[1761544762724,2.1611392,1153.0,1150.7,0.56758117]
[1761544762921,2.1611392,1153.0,1150.6,1.533]
[1761544763125,2.1611392,1153.0,1150.7,0.56758117]
[1761544763326,2.1611392,1153.0,1150.6,1.533]
[1761544763525,2.1611392,1153.0,1150.7,0.56754372]
[1761544763723,2.1611392,1153.1,1150.6,1.533]
[1761544763926,2.1611392,1153.1,1150.7,0.56747473]
[1761544764226,2.1611392,1153.3,1150.6,1.533]
[1761544764422,2.1611392,1153.3,1150.7,0.56738538]
[1761544764627,2.1611392,1153.3,1150.6,1.533]
[1761544764821,2.1611392,1153.3,1150.7,0.56742872]
[1761544765121,2.1611392,1153.3,1150.6,1.533]
[1761544765326,2.1611392,1153.3,1150.7,0.56740327]
[1761544765523,2.1611392,1153.3,1150.6,1.533]
[1761544765726,2.1611392,1153.3,1150.7,0.5673912]
[1761544765924,2.1611392,1153.3,1150.6,1.533]
[1761544766224,2.1611392,1153.3,1150.7,0.56739244]
[1761544766424,2.1611392,1153.4,1150.6,1.533]
[1761544766627,2.1611392,1153.4,1150.7,0.56735047]
[1761544766824,2.1611392,1153.4,1150.8,0.56733509]
[1761544767028,2.1611392,1153.6,1150.6,1.533]
[1761544767325,2.1611392,1153.6,1150.7,0.56722806]
[1761544767627,2.1611392,1153.6,1150.6,1.533]
[1761544767828,2.1611392,1153.6,1150.7,0.56722184]
[1761544768124,2.1611392,1153.6,1150.6,1.533]
[1761544768328,2.1611392,1153.6,1150.7,0.56721436]
[1761544768627,2.1611392,1153.6,1150.6,1.533]
[1761544768827,2.1611392,1153.6,1150.7,0.56719971]
[1761544769028,2.1611392,1153.6,1150.6,1.533]
[1761544769229,2.1611392,1153.6,1150.7,0.56716031]
[1761544769528,2.1611392,1153.6,1150.6,1.533]
[1761544769726,2.1611392,1153.6,1150.7,0.56716316]
[1761544769930,2.1611392,1153.6,1150.6,1.533]
[1761544770229,2.1611392,1153.6,1150.7,0.56703971]
[1761544770428,2.1611392,1153.6,1150.6,1.533]
[1761544770626,2.1611392,1153.6,1150.7,0.56698517]
[1761544770925,2.1611392,1153.6,1150.6,1.533]
[1761544771127,2.1611392,1153.5,1150.7,0.56697618]
[1761544771326,2.1611392,1153.5,1150.6,1.533]
[1761544771526,2.1611392,1153.5,1150.7,0.56695795]
[1761544771730,2.1611392,1153.5,1150.6,1.533]
[1761544772027,2.1611392,1153.5,1150.7,0.56695671]
[1761544772327,2.1611392,1153.7,1150.6,1.533]
[1761544772629,2.1611392,1153.6,1150.7,0.56694125]
[1761544772832,2.1611392,1153.6,1150.6,1.533]
[1761544773030,2.1611392,1153.6,1150.7,0.56693947]
[1761544773333,2.1611392,1153.6,1150.6,1.533]
[1761544773533,2.1611392,1153.6,1150.7,0.56693758]
[1761544773735,2.1611392,1153.6,1150.6,1.533]
[1761544773928,2.1611392,1153.6,1150.7,0.56694319]
[1761544774129,2.1611392,1153.6,1150.6,1.533]
[1761544774333,2.1611392,1153.5,1150.7,0.56694894]
[1761544774533,2.1611392,1153.5,1150.6,1.533]
[1761544774733,2.1611392,1153.5,1150.7,0.56694894]
[1761544774933,2.1611392,1153.5,1150.6,1.533]
[1761544775131,2.1611392,1153.5,1150.7,0.56694897]
[1761544775331,2.1611392,1153.8,1150.6,1.533]
[1761544775530,2.1611392,1153.8,1150.7,0.56696075]
[1761544775829,2.1611392,1153.8,1150.6,1.533]
[1761544776030,2.1611392,1153.8,1150.7,0.56695636]
[1761544776230,2.1611392,1153.8,1150.6,1.533]
[1761544776435,0.15105314,1154.0,1150.7,0.56706876]
[1761544776634,0.15105314,1154.0,1150.6,1.533]
[1761544776830,0.15105314,1154.0,1150.7,0.56706848]
[1761544777034,0.15105314,1154.0,1150.6,1.533]
[1761544777330,0.15105314,1154.0,1150.7,0.56703968]
[1761544777532,0.15105314,1154.0,1150.6,1.533]
[1761544777736,0.15105314,1154.0,1150.7,0.56589516]
[1761544777937,0.15105314,1154.0,1150.6,1.533]
[1761544778332,2.1611392,1153.7,1150.6,1.533]
[1761544779035,2.1611392,1153.5,1150.6,1.533]
[1761544779537,2.1611392,1153.4,1150.6,1.533]
[1761544782641,2.1611392,1152.2,1150.6,1.533]
[1761544783243,0.15122709,1152.0,1150.6,1.533]
[1761544804054,0.15122709,1152.0,1149.7,0.64363572]
[1761544804252,0.15122709,1152.0,1149.8,0.56488546]
[1761544804453,0.15122709,1152.0,1149.9,0.56488546]
[1761544804651,0.15122709,1152.0,1150.0,0.56488546]
[1761544804955,0.15122709,1152.0,1150.1,0.56485696]
[1761544805155,0.15122709,1152.0,1150.2,0.56485696]
[1761544805353,0.15122709,1152.0,1150.3,0.56485696]
[1761544805556,0.15122709,1152.0,1149.9,0.64363572]
[1761544805757,0.15122709,1152.0,1150.0,0.56461964]
[1761544805956,0.15122709,1152.0,1150.1,0.56461964]
[1761544806157,0.15122709,1152.0,1150.2,0.56461964]
[1761544806360,0.15122709,1152.0,1150.3,0.56461964]
[1761544806657,0.15122709,1152.0,1150.4,1.183]
[1761544809761,2.1611392,1153.1,1150.4,1.183]
[1761544809956,0.15119621,1152.2,1150.4,1.183]
[1761544810158,2.1611392,1153.1,1150.4,1.183]
[1761544810461,0.15119293,1152.2,1150.4,1.183]
[1761544810760,2.1611392,1153.1,1150.4,1.183]
[1761544810959,0.15119293,1152.2,1150.4,1.183]
[1761544811157,2.1611392,1153.1,1150.4,1.183]
[1761544811362,0.15119293,1152.2,1150.4,1.183]
[1761544811664,2.1611392,1153.1,1150.4,1.183]
[1761544811958,0.15119293,1152.2,1150.4,1.183]
[1761544812164,2.1611392,1153.1,1150.5,0.56515388]
[1761544812364,2.1611392,1153.1,1150.4,1.183]
[1761544812565,0.15119227,1152.2,1150.5,0.56512814]
[1761544812761,2.1611392,1153.2,1150.4,1.183]